fUSD/lending_fUSD_20260319
["ID","MTS","AMOUNT","RATE_DAILY","PERIOD"]
[408615346,1773954643086,-599.0,0.00017686,2]
[408615347,1773954643095,-599.0,0.00017687,2]
[408615348,1773954643104,-1800.0,0.000177,6]
[408615349,1773954643113,-599.0,0.00017735,2]
[408615350,1773954643122,-226.86441104,0.0001774,2]
[408615351,1773954643131,-300.0,0.000178,6]
[408615352,1773954643140,-800.0,0.00017808,2]
[408615353,1773954643150,-599.0,0.00017871,2]
[408615354,1773954643159,-214.0,0.00017874,2]
[408615356,1773954643168,-500.0,0.00017897,2]
[408615358,1773954643177,-1280.88388878,0.00017898,3]
[408615359,1773954643187,-8565.75555911,0.00017898,3]
[408615361,1773954643196,-8882.6885148,0.00017898,3]
[408615363,1773954643205,-500.0,0.00017898,3]
[408615365,1773954643214,-500.0,0.00017898,3]
[408615367,1773954643223,-9211.34798985,0.00017898,3]
[408615369,1773954643233,-500.0,0.00017898,3]
[408615371,1773954643242,-9552.16786547,0.00017898,3]
[408615373,1773954643251,-500.0,0.00017898,3]
[408615375,1773954643260,-9905.5980765,0.00017898,3]
[408615377,1773954643269,-500.0,0.00017898,3]
[408615379,1773954643278,-10272.10520533,0.00017898,3]
[408615381,1773954643287,-500.0,0.00017898,3]
[408615383,1773954643297,-10652.17309792,0.00017898,3]
[408615385,1773954643306,-562.34804496,0.00017898,3]
[408615387,1773954643316,-1001.65375552,0.00017898,3]
[408615391,1773954643331,-1016.49353724,0.00017898,3]
[408615394,1773954643342,-1748.45593624,0.00017898,3]
[408615398,1773954643353,-7279.70027355,0.00017898,3]
[408615401,1773954643362,-11455.01673214,0.00017898,3]
[408615404,1773954643376,-1140.80039631,0.00017898,3]
[408615409,1773954643403,-426.99686455,0.00017898,3]
[408615411,1773954643415,-2122.85360847,0.00017898,3]
[408615413,1773954643427,-8188.2014819,0.00017898,3]
[408615415,1773954643436,-500.0,0.00017898,3]
[408615418,1773954643447,-151.0,0.00017898,3]
[408615419,1773954643458,-1068.85171266,0.00017898,3]
[408615444,1773954643666,-1374.04635367,0.00017898,3]
[408615526,1773954645572,-203.80623433,0.00016438,2]
[408615527,1773954645583,-5428.44835628,0.00017898,3]
[408615528,1773954645627,-434.84302794,0.00017898,3]
[408615529,1773954645684,-4012.18043768,0.00017898,3]
[408615530,1773954645695,-151.0,0.00017898,3]
[408615531,1773954645704,-2419.80573363,0.00017898,3]
[408615532,1773954645716,-883.4800005,0.00017898,3]
[408615533,1773954645952,-4074.12,0.00017898,3]
[408615534,1773954645964,-5396.74383996,0.00017898,3]
[408615535,1773954645974,-151.0,0.00017898,3]
[408615536,1773954645983,-250.0,0.00017898,3]
[408615537,1773954645992,-3197.66964927,0.00017898,3]
[408615539,1773954842710,-150.0,8.256e-05,2]
[408615540,1773954842731,-19850.0,8.257e-05,2]
[408615541,1773954843905,-20000.0,8.257e-05,2]
[408615542,1773954844807,-20000.0,8.257e-05,2]
[408615543,1773954845495,-2022.5807,8.257e-05,2]
[408615544,1773954845517,-17977.4193,8.258e-05,2]
[408615545,1773954846106,-20000.0,8.258e-05,2]
[408615546,1773954846648,-20000.0,8.258e-05,2]
[408615547,1773954847178,-20000.0,8.258e-05,2]
[408615548,1773954847723,-20000.0,8.258e-05,2]
[408615549,1773954848319,-520.9502,8.258e-05,2]
[408615550,1773954906623,157.0,8.258e-05,3]
[408615551,1773954907400,159.0,8.258e-05,3]
[408615552,1773954967675,159.0,8.258e-05,3]
[408615553,1773955051319,-5000.0,9.537e-05,2]
[408615554,1773955210499,158.0,8.258e-05,3]
[408615555,1773955507909,158.0,8.258e-05,3]
[408615557,1773955806728,158.0,8.258e-05,3]
[408615564,1773955832017,-575.75,9.436e-05,2]
[408615565,1773955832072,-404.30213,9.436e-05,2]
[408615566,1773955832085,-219.94787,9.436e-05,2]
[408615567,1773955832094,-228.0,9.436e-05,2]
[408615568,1773955832104,-601.63581947,9.436e-05,2]
[408615569,1773955832114,-1023.25809395,9.436e-05,2]
[408615572,1773955832144,-665.72995843,9.436e-05,2]
[408615575,1773955832158,-1424.51542341,9.436e-05,2]
[408615596,1773955837882,-863.73012948,9.436e-05,2]
[408615597,1773955837893,-231.42600236,9.436e-05,2]
[408615598,1773955837902,-250.0,9.436e-05,2]
[408615599,1773955837911,-250.0,9.437e-05,2]
[408615600,1773955837922,-306.0083487,9.437e-05,2]
[408615601,1773955838029,-193.9916513,9.437e-05,2]
[408615602,1773955838038,-1200.0,9.49e-05,2]
[408615603,1773955838047,-300.0,9.499e-05,2]
[408615604,1773955838056,-150.0,9.499e-05,2]
[408615605,1773955838065,-872.92782411,9.5e-05,3]
[408615606,1773955838077,-1343.73963109,9.5e-05,3]
[408615607,1773955838087,-706.17502194,9.5e-05,3]
[408615608,1773955838102,-12496.31740234,9.5e-05,3]
[408615609,1773955838116,-422.58467,9.5e-05,3]
[408615610,1773955838127,-2589.49791791,9.5e-05,3]
[408615611,1773955838139,-1548.78893979,9.5e-05,3]
[408615612,1773955838152,-2249.652817,9.5e-05,3]
[408615613,1773955838163,-6814.94453654,9.5e-05,3]
[408615614,1773955838174,-71363.0887235,9.5e-05,3]
[408615616,1773955838184,-601.63581945,9.713e-05,2]
[408615617,1773955838194,-150.99,9.989e-05,2]
[408615618,1773955838204,-601.63581945,9.989e-05,2]
[408615619,1773955838213,-9999.99,9.99e-05,2]
[408615620,1773955838222,-1019.16024246,0.0001025,2]
[408615621,1773955838231,-250.0,0.0001038,2]
[408615623,1773955838241,-193.0,0.0001038,2]
[408615625,1773955838250,-5000.0,0.0001038,2]
[408615627,1773955838259,-1277.0,0.00010438,2]
[408615628,1773955838268,-239.0,0.00010449,2]
[408615629,1773955838277,-7807.84,0.00010717,2]
[408615630,1773955838286,-2000.0,0.00010827,2]
[408615631,1773955838296,-1979.55,0.00010836,2]
[408615632,1773955838305,-500.0,0.00011172,2]
[408615633,1773955838314,-6681.21,0.00011344,2]
[408615634,1773955838323,-166.66,0.00011352,2]
[408615635,1773955838333,-166.66,0.00011727,2]
[408615636,1773955838344,-979.16666667,0.0001183,2]
[408615637,1773955838353,-160.0,0.0001183,2]
[408615638,1773955838362,-8646.09744965,0.00011946,2]
[408615639,1773955838371,-166.66,0.00012102,2]
[408615640,1773955838380,-2000.0,0.0001218,2]
[408615641,1773955838388,-204.04031347,0.0001244,2]
[408615642,1773955838397,-973.55535852,0.00012446,2]
[408615643,1773955838406,-973.55535852,0.00012446,2]
[408615644,1773955838415,-973.55535852,0.00012446,2]
[408615645,1773955838424,-973.55535852,0.00012446,2]
[408615646,1773955838433,-973.55535852,0.00012446,2]
[408615647,1773955838442,-973.55535852,0.00012446,2]
[408615648,1773955838451,-973.55535852,0.00012446,2]
[408615649,1773955838460,-973.55535852,0.00012446,2]
[408615650,1773955838469,-973.55535852,0.00012446,2]
[408615651,1773955838478,-973.55535852,0.00012446,2]
[408615652,1773955838488,-973.55535852,0.00012446,2]
[408615653,1773955838497,-973.55535852,0.00012446,2]
[408615654,1773955838506,-973.55535852,0.00012446,2]
[408615655,1773955838514,-973.55535852,0.00012446,2]
[408615656,1773955838523,-973.55535852,0.00012446,2]
[408615657,1773955838532,-973.55535852,0.00012446,2]
[408615658,1773955838541,-973.55535852,0.00012446,2]
[408615659,1773955838550,-973.55535852,0.00012446,2]
[408615660,1773955838559,-973.55535852,0.00012446,2]
[408615661,1773955838568,-973.55535852,0.00012446,2]
[408615662,1773955838578,-973.55535852,0.00012446,2]
[408615663,1773955838588,-973.55535852,0.00012446,2]
[408615664,1773955838597,-973.55535852,0.00012446,2]
[408615665,1773955838605,-973.55535852,0.00012446,2]
[408615666,1773955838616,-973.55535852,0.00012446,2]
[408615667,1773955838626,-973.55535852,0.00012446,2]
[408615668,1773955838637,-973.55535852,0.00012446,2]
[408615669,1773955838647,-973.55535852,0.00012446,2]
[408615670,1773955838655,-973.55535852,0.00012446,2]
[408615671,1773955838668,-973.55535852,0.00012446,2]
[408615672,1773955838678,-973.55535852,0.00012446,2]
[408615673,1773955838687,-973.55535852,0.00012446,2]
[408615674,1773955838700,-973.55535852,0.00012446,2]
[408615675,1773955838710,-973.55535852,0.00012446,2]
[408615676,1773955838720,-973.55535852,0.00012446,2]
[408615677,1773955838730,-973.55535852,0.00012446,2]
[408615678,1773955838742,-973.55535852,0.00012446,2]
[408615679,1773955838751,-973.55535852,0.00012446,2]
[408615680,1773955838761,-973.55535852,0.00012446,2]
[408615681,1773955838776,-973.55535852,0.00012446,2]
[408615682,1773955838787,-973.55535852,0.00012446,2]
[408615683,1773955838796,-973.55535852,0.00012446,2]
[408615684,1773955838805,-973.55535852,0.00012446,2]
[408615685,1773955838813,-973.55535852,0.00012446,2]
[408615686,1773955838823,-973.55535852,0.00012446,2]
[408615687,1773955838832,-973.55535852,0.00012446,2]
[408615688,1773955838841,-973.55535852,0.00012446,2]
[408615689,1773955838850,-973.55535852,0.00012446,2]
[408615690,1773955838859,-973.55535852,0.00012446,2]
[408615691,1773955838869,-973.55535852,0.00012446,2]
[408615692,1773955838879,-973.55535852,0.00012446,2]
[408615693,1773955838888,-973.55535852,0.00012446,2]
[408615694,1773955838897,-973.55535852,0.00012446,2]
[408615695,1773955838906,-973.55535852,0.00012446,2]
[408615696,1773955838915,-973.55535852,0.00012446,2]
[408615697,1773955838924,-973.55535852,0.00012446,2]
[408615698,1773955838933,-973.55535852,0.00012446,2]
[408615699,1773955838942,-1547.9527852,0.00012447,2]
[408615700,1773955838952,-55667.6257915,0.00012447,2]
[408615701,1773955838962,-811.3854187,0.00012447,2]
[408615702,1773955838970,-28755.106026,0.00012447,2]
[408615703,1773955838980,-7847.7638423,0.00012447,2]
[408615704,1773955838989,-250.0,0.00012468,2]
[408615705,1773955838999,-166.66,0.00012477,2]
[408615706,1773955839008,-166.66,0.00012851,2]
[408615707,1773955839017,-2601.65,0.000132,2]
[408615708,1773955839026,-500.0,0.00013203,2]
[408615709,1773955839036,-500.0,0.00013203,2]
[408615710,1773955839045,-500.0,0.00013203,2]
[408615711,1773955839054,-158.0,0.00013206,3]
[408615712,1773955839063,-166.66,0.00013226,2]
[408615713,1773955839072,-507.0,0.000133,2]
[408615714,1773955839080,-500.0,0.00013396,2]
[408615715,1773955839090,-500.0,0.00013396,2]
[408615716,1773955839099,-3240.0,0.00013425,2]
[408615717,1773955839108,-1252.56668901,0.00013533,2]
[408615721,1773955840157,-747.43331099,0.00013533,2]
[408615722,1773955840167,-1781.87191155,0.00013759,2]
[408615723,1773955840180,-794.6321241,0.00013759,2]
[408615724,1773955840192,-1330.89623694,0.00013828,2]
[408615725,1773955840203,-831.00500063,0.00013828,2]
[408615743,1773955842990,-566.2104,0.00013828,2]
[408615785,1773957032082,-219.0,8.219e-05,2]
[408615786,1773957032092,-5000.0,8.27e-05,2]
[408615787,1773957032101,-250.0,8.322e-05,2]
[408615788,1773957032110,-2334.9248715,8.658e-05,2]
[408615789,1773957032119,-1129.0,8.67e-05,2]
[408615790,1773957032129,-250.0,8.671e-05,2]
[408615791,1773957032138,-300.0,9.04e-05,2]
[408615792,1773957032148,-250.0,9.041e-05,2]
[408615793,1773957032157,-5000.0,9.041e-05,2]
[408615794,1773957032166,-420.0,9.944e-05,2]
[408615795,1773957032175,-1409.0,0.000107,5]
[408615796,1773957032184,-472.22429929,0.0001086,2]
[408615797,1773957032202,-587.0,0.00010938,2]
[408615798,1773957032212,-166.66,0.00011322,2]
[408615799,1773957032221,-166.66,0.0001156,2]
[408615800,1773957032230,-166.66,0.00011798,2]
[408615801,1773957032239,-160.0,0.00011847,2]
[408615802,1773957032249,-198.0,0.00012032,2]
[408615803,1773957032258,-166.66,0.00012037,2]
[408615805,1773957032267,-6339.85,0.00012055,2]
[408615806,1773957032276,-979.16666667,0.00012203,2]
[408615807,1773957032286,-166.66,0.00012275,2]
[408615808,1773957032295,-167.47692504,0.000123,2]
[408615809,1773957032304,-196.00309557,0.000123,2]
[408615810,1773957032313,-202.18511811,0.000123,2]
[408615811,1773957032322,-205.9806489,0.000123,2]
[408615812,1773957032332,-150.99,0.00012303,2]
[408615813,1773957032341,-299.99,0.00012303,2]
[408615814,1773957032351,-9999.99,0.00012303,2]
[408615815,1773957032360,-2500.0,0.00012374,2]
[408615816,1773957032369,-1930.54991177,0.00012404,2]
[408615817,1773957032378,-86.29502461,0.00012404,2]
[408615818,1773957032391,-5694.71755767,0.00012404,2]
[408615819,1773957032400,-12201.61269362,0.00012404,2]
[408615820,1773957032409,-151.0,0.00012466,2]
[408615821,1773957032418,-151.0,0.00012466,2]
[408615822,1773957032427,-151.0,0.00012466,2]
[408615823,1773957032436,-151.0,0.00012466,2]
[408615824,1773957032445,-151.0,0.00012466,2]
[408615825,1773957032455,-151.0,0.00012466,2]
[408615826,1773957032465,-151.0,0.00012466,2]
[408615827,1773957032474,-151.0,0.00012466,2]
[408615828,1773957032488,-151.0,0.00012466,2]
[408615829,1773957032498,-151.0,0.00012466,2]
[408615830,1773957032507,-151.0,0.00012466,2]
[408615831,1773957032516,-151.0,0.00012466,2]
[408615832,1773957032525,-500.0,0.00012473,2]
[408615833,1773957032535,-500.0,0.00012473,2]
[408615834,1773957032544,-500.0,0.00012473,2]
[408615835,1773957032554,-500.0,0.00012473,2]
[408615836,1773957032563,-500.0,0.00012473,2]
[408615837,1773957032574,-500.0,0.00012473,2]
[408615838,1773957032583,-500.0,0.00012473,2]
[408615839,1773957032593,-500.0,0.00012473,2]
[408615840,1773957032603,-500.0,0.00012473,2]
[408615841,1773957032612,-500.0,0.00012473,2]
[408615842,1773957032621,-500.0,0.00012473,2]
[408615843,1773957032631,-500.0,0.00012473,2]
[408615844,1773957032640,-500.0,0.00012473,2]
[408615845,1773957032649,-500.0,0.00012473,2]
[408615846,1773957032659,-500.0,0.00012473,2]
[408615847,1773957032668,-500.0,0.00012473,2]
[408615848,1773957032677,-500.0,0.00012473,2]
[408615849,1773957032687,-500.0,0.00012473,2]
[408615850,1773957032696,-500.0,0.00012473,2]
[408615851,1773957032706,-500.0,0.00012473,2]
[408615852,1773957032715,-500.0,0.00012473,2]
[408615853,1773957032725,-500.0,0.00012473,2]
[408615854,1773957032734,-500.0,0.00012473,2]
[408615855,1773957032743,-500.0,0.00012473,2]
[408615856,1773957032752,-500.0,0.00012473,2]
[408615857,1773957032761,-500.0,0.00012473,2]
[408615858,1773957032771,-500.0,0.00012473,2]
[408615859,1773957032780,-500.0,0.00012473,2]
[408615860,1773957032789,-500.0,0.00012473,2]
[408615861,1773957032800,-500.0,0.00012473,2]
[408615862,1773957032809,-500.0,0.00012473,2]
[408615863,1773957032818,-500.0,0.00012473,2]
[408615864,1773957032828,-500.0,0.00012473,2]
[408615865,1773957032837,-500.0,0.00012473,2]
[408615866,1773957032846,-500.0,0.00012473,2]
[408615867,1773957032856,-500.0,0.00012473,2]
[408615868,1773957032865,-321.22772444,0.00012473,2]
[408615869,1773957032874,-500.0,0.00012473,2]
[408615870,1773957032883,-500.0,0.00012473,2]
[408615871,1773957032892,-500.0,0.00012473,2]
[408615872,1773957032902,-500.0,0.00012473,2]
[408615873,1773957032912,-500.0,0.00012473,2]
[408615874,1773957032921,-500.0,0.00012473,2]
[408615875,1773957032930,-500.0,0.00012473,2]
[408615876,1773957032939,-500.0,0.00012473,2]
[408615877,1773957032949,-500.0,0.00012473,2]
[408615878,1773957032957,-500.0,0.00012473,2]
[408615879,1773957032967,-500.0,0.00012473,2]
[408615880,1773957032977,-500.0,0.00012473,2]
[408615881,1773957032987,-500.0,0.00012473,2]
[408615882,1773957032996,-500.0,0.00012473,2]
[408615883,1773957033006,-500.0,0.00012473,2]
[408615884,1773957033020,-500.0,0.00012473,2]
[408615885,1773957033029,-500.0,0.00012473,2]
[408615886,1773957033038,-500.0,0.00012473,2]
[408615887,1773957033049,-500.0,0.00012473,2]
[408615888,1773957033058,-500.0,0.00012473,2]
[408615889,1773957033067,-500.0,0.00012473,2]
[408615890,1773957033077,-500.0,0.00012473,2]
[408615891,1773957033086,-650.0,0.00012473,2]
[408615892,1773957033098,-500.0,0.00012473,2]
[408615893,1773957033107,-500.0,0.00012473,2]
[408615894,1773957033117,-500.0,0.00012473,2]
[408615895,1773957033126,-500.0,0.00012473,2]
[408615896,1773957033135,-500.0,0.00012473,2]
[408615897,1773957033144,-500.0,0.00012473,2]
[408615898,1773957033154,-500.0,0.00012473,2]
[408615899,1773957033163,-500.0,0.00012473,2]
[408615900,1773957033172,-500.0,0.00012473,2]
[408615901,1773957033182,-500.0,0.00012473,2]
[408615902,1773957033191,-500.0,0.00012473,2]
[408615903,1773957033200,-500.0,0.00012473,2]
[408615904,1773957033209,-500.0,0.00012473,2]
[408615905,1773957033218,-500.0,0.00012473,2]
[408615906,1773957033228,-500.0,0.00012473,2]
[408615907,1773957033237,-500.0,0.00012473,2]
[408615908,1773957033246,-500.0,0.00012473,2]
[408615909,1773957033255,-500.0,0.00012473,2]
[408615910,1773957033264,-312.22439363,0.00012473,2]
[408615911,1773957033274,-500.0,0.00012473,2]
[408615912,1773957033283,-500.0,0.00012473,2]
[408615913,1773957033292,-500.0,0.00012473,2]
[408615914,1773957033301,-500.0,0.00012473,2]
[408615915,1773957033310,-250.0,0.00012473,2]
[408615916,1773957033319,-407.52888808,0.00012473,2]
[408615917,1773957033328,-32304.043,0.00012474,2]
[408615918,1773957033337,-181952.29394658,0.00012474,2]
[408615919,1773957033349,-1085.39999998,0.00012474,2]
[408615923,1773957038685,-347.94216551,0.00012474,2]
[408615924,1773957038809,-783.09266786,0.00012474,2]
[408615925,1773957038820,-332714.32431944,0.00012474,2]
[408615926,1773957038831,-2918.56,0.00012474,2]
[408615939,1773957040314,-420.81679979,0.00012474,2]
[408615940,1773957040325,-1560.14769492,0.00012474,2]
[408615941,1773957040336,-412.28115756,0.00012474,2]
[408615942,1773957040346,-4779.76509798,0.00012474,2]
[408615943,1773957040543,-43173.89217123,0.00012474,2]
[408615944,1773957040773,-426639.65447915,0.00012474,2]
[408615945,1773957040782,-14203.42,0.00012503,2]
[408615946,1773957040791,-166.66,0.00012513,2]
[408615947,1773957040801,-179.22837698,0.00012564,2]
[408615948,1773957040811,-50288.6220059,0.00012574,2]
[408615949,1773957040820,-739.454561,0.00012574,2]
[408615950,1773957040831,-41750.7193436,0.00012574,2]
[408615951,1773957040840,-21566.3295195,0.00012574,2]
[408615952,1773957040849,-3648.2013535,0.00012574,2]
[408615954,1773957040858,-2434.1562561,0.00012574,2]
[408615956,1773957040867,-500.0,0.00012639,2]
[408615957,1773957040876,-500.0,0.00012747,2]
[408615958,1773957040885,-8775.7278,0.00012766,2]
[408615959,1773957040895,-504.87,0.00012817,2]
[408615960,1773957040903,-774.73,0.00012866,2]
[408615961,1773957040913,-161.6,0.00012919,2]
[408615962,1773957040922,-1930.54991177,0.00013015,2]
[408615963,1773957040931,-12201.61269357,0.00013015,2]
[408615964,1773957040941,-721.12,0.00013159,2]
[408615965,1773957040950,-507.0,0.000133,2]
[408615966,1773957040959,-1930.54991177,0.00013625,2]
[408615967,1773957040968,-12201.61269357,0.00013625,2]
[408615968,1773957040977,-1000.0,0.00013652,2]
[408615969,1773957040986,-246.0894193,0.00013698,2]
[408615970,1773957040995,-186.91,0.00013699,2]
[408615971,1773957041004,-500.0,0.00013699,2]
[408615972,1773957041015,-500.0,0.00013699,2]
[408615973,1773957041024,-232.72104208,0.00013699,2]
[408615974,1773957041033,-500.0,0.00013699,2]
[408615975,1773957041042,-500.0,0.00013699,2]
[408615977,1773957041051,-571.68,0.000137,2]
[408615978,1773957041061,-493.02,0.000137,2]
[408615979,1773957041070,-339.2,0.000137,2]
[408615980,1773957041080,-202285.4,0.000137,2]
[408615981,1773957041090,-150.0,0.00013825,2]
[408615982,1773957041100,-150.0,0.00013825,2]
[408615983,1773957041109,-5119.65220473,0.00013828,2]
[408615984,1773957041118,-1319.99831286,0.00013828,2]
[408615985,1773957041127,-200.0,0.00013828,2]
[408615986,1773957041136,-200.0,0.00013828,2]
[408615987,1773957041144,-200.0,0.00013828,2]
[408615988,1773957041153,-500.0,0.00013828,2]
[408615989,1773957041162,-158.0,0.00013828,3]
[408615990,1773957041172,-200.0,0.00013966,2]
[408615991,1773957041181,-200.0,0.00013966,2]
[408615992,1773957041190,-200.0,0.00013966,2]
[408615993,1773957041199,-5781.01258227,0.00014032,2]
[408615994,1773957041208,-739.454561,0.00014081,2]
[408615995,1773957041228,-525.51,0.00014099,2]
[408615996,1773957041238,-200.0,0.00014106,2]
[408615997,1773957041247,-200.0,0.00014106,2]
[408615998,1773957041257,-200.0,0.00014106,2]
[408615999,1773957041267,-41750.7193436,0.00014148,2]
[408616000,1773957041276,-21566.3295195,0.00014148,2]
[408616001,1773957041286,-7753.59390112,0.00014202,2]
[408616002,1773957041295,-1930.54991177,0.00014236,2]
[408616003,1773957041304,-12201.61269357,0.00014236,2]
[408616004,1773957041314,-500.0,0.00014247,2]
[408616005,1773957041323,-1000.0,0.00014247,2]
[408616006,1773957041333,-504.77307039,0.00014247,2]
[408616007,1773957041343,-200.0,0.00014247,2]
[408616008,1773957041352,-200.0,0.00014247,2]
[408616009,1773957041362,-50288.6220059,0.00014283,2]
[408616010,1773957041372,-814.0237522,0.00014302,2]
[408616011,1773957041381,-4939.67054606,0.00014326,2]
[408616012,1773957041390,-320.38259783,0.00014326,2]
[408616013,1773957041399,-525.51,0.00014373,2]
[408616014,1773957041409,-200.0,0.00014389,2]
[408616015,1773957041419,-200.0,0.00014389,2]
[408616016,1773957041428,-150.0,0.00014455,2]
[408616017,1773957041437,-507.0,0.00014583,3]
[408616018,1773957041447,-525.51,0.00014647,2]
[408616019,1773957041457,-620.0,0.00014651,2]
[408616020,1773957041467,-1044.0,0.00014651,2]
[408616021,1773957041477,-1344.0,0.00014651,2]
[408616022,1773957041486,-3512.0,0.00014651,2]
[408616023,1773957041495,-1261.0,0.00014651,2]
[408616024,1773957041505,-3758.0,0.00014651,2]
[408616025,1773957041514,-414.0,0.00014651,2]
[408616026,1773957041524,-2465.0,0.00014651,2]
[408616027,1773957041533,-181.6332502,0.00014687,2]
[408616028,1773957041543,-721.12,0.00014804,2]
[408616029,1773957041552,-1930.54991177,0.00014847,2]
[408616030,1773957041561,-12201.61269357,0.00014847,2]
[408616031,1773957041571,-2000.0,0.00014887,2]
[408616032,1773957041581,-525.51,0.00014921,2]
[408616033,1773957041590,-32974.6857,0.00014922,2]
[408616034,1773957041600,-1000.0,0.00014922,2]
[408616035,1773957041609,-7753.59390111,0.00014942,2]
[408616036,1773957041619,-250.0,0.00015,2]
[408616037,1773957041629,-5127.50994964,0.00015023,2]
[408616038,1773957041639,-214.0,0.00015068,2]
[408616039,1773957041648,-214.0,0.00015068,2]
[408616040,1773957041658,-161.6,0.00015073,2]
[408616041,1773957041668,-3323.81036434,0.00015084,3]
[408616042,1773957041678,-249.983797,0.0001519,7]
[408616043,1773957041688,-160.0,0.0001519,7]
[408616044,1773957041697,-173.344445,0.0001519,7]
[408616045,1773957041707,-525.51,0.00015195,2]
[408616046,1773957041716,-215.501002,0.00015205,2]
[408616047,1773957041726,-214.0,0.00015205,2]
[408616048,1773957041735,-7847.7638423,0.00015209,2]
[408616049,1773957041745,-339.347658,0.00015358,7]
[408616050,1773957041754,-168.047762,0.00015408,7]
[408616051,1773957041768,-1930.54991177,0.00015457,2]
[408616052,1773957041777,-12201.61269357,0.00015457,2]
[408616053,1773957041787,-525.54053368,0.00015469,2]
[408616054,1773957041796,-571.68,0.000155,2]
[408616055,1773957041806,-493.02,0.000155,2]
[408616056,1773957041816,-339.2,0.000155,2]
[408616057,1773957041826,-202285.4,0.000155,2]
[408616058,1773957041836,-155.904935,0.000155,2]
[408616059,1773957041846,-151.0,0.000155,2]
[408616060,1773957041856,-151.0,0.000155,2]
[408616061,1773957041866,-153.435431,0.000155,2]
[408616062,1773957041875,-151.0,0.000155,2]
[408616063,1773957041885,-151.0,0.000155,2]
[408616064,1773957041894,-151.0,0.000155,2]
[408616065,1773957041904,-151.0,0.000155,2]
[408616066,1773957041913,-151.0,0.000155,2]
[408616067,1773957041922,-151.0,0.000155,2]
[408616068,1773957041932,-151.0,0.000155,2]
[408616069,1773957041942,-4000.0,0.00015507,2]
[408616070,1773957041952,-739.454561,0.00015587,2]
[408616071,1773957041962,-5781.01258227,0.0001566,2]
[408616072,1773957041971,-356.319138,0.00015671,7]
[408616073,1773957041981,-160.0,0.00015671,7]
[408616074,1773957041993,-1538.0,0.0001568,2]
[408616075,1773957042003,-7753.59390111,0.00015681,2]
[408616076,1773957042014,-41750.7193436,0.00015723,2]
[408616077,1773957042024,-21566.3295195,0.00015723,2]
[408616078,1773957042035,-663.67570706,0.00015796,2]
[408616079,1773957042045,-507.0,0.00015865,4]
[408616080,1773957042056,-4000.0,0.00015895,2]
[408616081,1773957042066,-220.33482084,0.000159,2]
[408616082,1773957042076,-220.33482065,0.000159,2]
[408616083,1773957042089,-220.33482065,0.000159,2]
[408616084,1773957042100,-220.33482065,0.000159,2]
[408616085,1773957042110,-556.29819632,0.000159,2]
[408616086,1773957042120,-220.33482065,0.000159,2]
[408616087,1773957042129,-220.33482065,0.000159,2]
[408616088,1773957042140,-220.33482065,0.000159,2]
[408616089,1773957042149,-220.33482065,0.000159,2]
[408616090,1773957042159,-220.33482065,0.000159,2]
[408616091,1773957042169,-220.33482065,0.000159,2]
[408616092,1773957042179,-220.33482065,0.000159,2]
[408616093,1773957042188,-1013.78,0.00015931,2]
[408616094,1773957042198,-400.0,0.0001597,2]
[408616095,1773957042208,-400.0,0.0001597,2]
[408616096,1773957042218,-400.0,0.0001597,2]
[408616097,1773957042228,-50288.6220059,0.00015991,2]
[408616098,1773957042237,-2000.0,0.00016,2]
[408616099,1773957042247,-407.61246868,0.00016,2]
[408616100,1773957042257,-1930.54991177,0.00016068,2]
[408616101,1773957042266,-12201.61269357,0.00016068,2]
[408616102,1773957042276,-2000.0,0.00016074,2]
[408616103,1773957042286,-1000.0,0.00016082,2]